bitfinex/quotes_BTCUSD_20230117
["timestamp","ask_amount","ask_price","bid_price","bid_amount"]
[1673949874825,0.23360024,21168.0,21167.0,0.772433]
[1673949875073,0.092,21168.0,21167.0,0.91404727]
[1673949875859,0.09235954,21168.0,21167.0,0.472433]
[1673949876128,0.55576278,21168.0,21167.0,0.472433]
[1673949876389,0.41416254,21168.0,21167.0,0.472433]
[1673949876662,0.55576278,21168.0,21167.0,0.472433]
[1673949877211,0.41416254,21168.0,21167.0,0.472433]
[1673949877496,0.76816941,21168.0,21167.0,0.472433]
[1673949878033,0.44636641,21168.0,21167.0,0.472433]
[1673949878317,0.87643543,21168.0,21166.0,0.11403706]
[1673949878580,1.5499165,21167.0,21166.0,0.00323706]
[1673949878837,2.5739858,21167.0,21166.0,0.00323706]
[1673949879662,2.2909818,21167.0,21166.0,0.00323706]
[1673949879922,2.57408337,21167.0,21166.0,0.00323706]
[1673949880231,0.92882512,21167.0,21166.0,0.00317312]
[1673949880502,0.41268598,21166.0,21162.0,0.359762]
[1673949880765,0.46335612,21165.0,21162.0,0.359762]
[1673949881051,0.321803,21164.0,21162.0,0.359762]
[1673949881302,0.321803,21163.0,21162.0,0.359762]
[1673949881557,0.35388279,21165.0,21162.0,0.359762]
[1673949881822,0.44488279,21165.0,21162.0,0.359762]
[1673949882088,0.321803,21164.0,21162.0,0.359762]
[1673949882351,0.321803,21163.0,21162.0,0.359762]
[1673949882633,0.321803,21163.0,21162.0,0.659762]
[1673949882905,0.028,21164.0,21162.0,0.359762]
[1673949883164,0.24,21165.0,21162.0,0.359762]
[1673949883429,0.00035954,21164.0,21162.0,0.359762]
[1673949883682,0.321803,21163.0,21162.0,0.359762]
[1673949883940,0.321803,21163.0,21162.0,0.659762]
[1673949883941,0.028,21163.0,21162.0,0.659762]
[1673949884207,0.00035954,21164.0,21162.0,0.659762]
[1673949884445,0.00035954,21164.0,21162.0,0.359762]
[1673949884724,0.321803,21163.0,21162.0,0.359762]
[1673949884977,0.028,21163.0,21162.0,0.659762]
[1673949885233,0.00035954,21164.0,21162.0,0.659762]
[1673949885488,0.02835954,21164.0,21162.0,0.659762]
[1673949885735,0.00035954,21164.0,21162.0,0.659762]
[1673949885986,0.028,21163.0,21162.0,0.359762]
[1673949887024,0.00035954,21164.0,21162.0,0.359762]
[1673949887327,0.02835954,21164.0,21162.0,0.359762]
[1673949887534,0.321803,21163.0,21162.0,0.359762]
[1673949887798,0.028,21163.0,21162.0,0.359762]
[1673949888051,0.24,21165.0,21162.0,0.659762]
[1673949888303,0.028,21164.0,21163.0,0.3]
[1673949889089,0.24,21165.0,21163.0,0.3]
[1673949889346,0.331,21165.0,21163.0,0.772519]
[1673949889612,0.24,21165.0,21163.0,1.43576695]
[1673949889912,0.24,21165.0,21164.0,0.1109]
[1673949890413,0.24,21165.0,21164.0,0.5834]
[1673949890683,0.24,21165.0,21164.0,0.8834]
[1673949890930,0.24,21165.0,21164.0,1.3559]
[1673949891733,0.33235954,21165.0,21164.0,1.3559]
[1673949893551,0.33235954,21165.0,21161.0,0.5794396]
[1673949893552,1.45182009,21165.0,21161.0,0.15492773]
[1673949893829,0.14137294,21163.0,21161.0,0.01331346]
[1673949894071,0.332,21165.0,21161.0,1.36442763]
[1673949894325,0.00035954,21164.0,21161.0,1.5060419]
[1673949894584,0.00035954,21164.0,21163.0,0.2228]
[1673949894848,0.00035954,21164.0,21163.0,0.695322]
[1673949895203,0.24,21165.0,21163.0,0.695322]
[1673949895380,0.00735954,21164.0,21163.0,0.3]
[1673949895640,0.07754954,21164.0,21162.0,0.1116]
[1673949895976,0.16854954,21164.0,21162.0,0.4116]
[1673949896202,0.07754954,21164.0,21162.0,0.4116]
[1673949897263,0.00035954,21164.0,21162.0,0.1116]
[1673949897525,0.331,21165.0,21163.0,0.1116]
[1673949897799,0.331,21165.0,21164.0,0.1112]
[1673949897800,0.24,21165.0,21164.0,0.1112]
[1673949898049,0.24,21165.0,21164.0,0.4112]
[1673949899098,0.332,21165.0,21164.0,0.8837]
[1673949899925,0.33235954,21165.0,21164.0,0.8837]
[1673949900123,0.653803,21165.0,21164.0,0.5837]
[1673949900438,0.653803,21165.0,21164.0,0.8837]
[1673949900700,0.332,21165.0,21164.0,0.5837]
[1673949900954,0.65416254,21165.0,21164.0,0.5837]
[1673949902226,0.33235954,21165.0,21164.0,0.1112]
[1673949902484,0.65416254,21165.0,21164.0,0.1112]
[1673949903241,0.332,21165.0,21164.0,0.1112]
[1673949903499,0.65416254,21165.0,21164.0,0.1112]
[1673949903760,0.653803,21165.0,21164.0,0.1112]
[1673949904564,0.65416254,21165.0,21163.0,0.472506]
[1673949904833,0.321803,21164.0,21163.0,0.472506]
[1673949905088,0.321803,21164.0,21161.0,0.59647346]
[1673949905350,0.321803,21163.0,21161.0,0.59647346]
[1673949905624,0.321803,21162.0,21161.0,0.59647346]
[1673949906121,0.49169119,21164.0,21161.0,0.59647346]
[1673949906666,0.321803,21163.0,21161.0,0.59647346]
[1673949906955,0.49169119,21164.0,21162.0,0.3]
[1673949907445,0.321803,21163.0,21162.0,0.3]
[1673949907727,0.40005073,21164.0,21162.0,0.772545]
[1673949907974,0.40005073,21164.0,21162.0,0.77272744]
[1673949908273,0.39969119,21164.0,21162.0,0.77272744]
[1673949908509,0.49169119,21164.0,21162.0,0.77272744]
[1673949908767,0.321803,21163.0,21162.0,0.772545]
[1673949909018,0.321803,21163.0,21162.0,0.883845]
[1673949909277,0.092,21164.0,21162.0,0.883845]
[1673949909555,0.24,21165.0,21163.0,0.4108]
[1673949909825,0.24,21165.0,21164.0,0.31635795]
[1673949910082,0.24,21165.0,21164.0,1.84604627]
[1673949910347,0.24,21165.0,21164.0,1.704432]
[1673949911196,0.332,21165.0,21164.0,1.5788]
[1673949911457,0.24,21165.0,21164.0,1.704428]
[1673949911750,0.332,21165.0,21164.0,1.704428]
[1673949913613,0.332,21165.0,21164.0,1.5788]
[1673949914892,0.332,21165.0,21164.0,1.704428]
[1673949915151,0.332,21165.0,21164.0,1.5788]
[1673949915941,0.332,21165.0,21164.0,1.3209]
[1673949918024,0.33235954,21165.0,21164.0,1.3209]
[1673949918305,0.332,21165.0,21164.0,1.3209]
[1673949919353,0.332,21165.0,21164.0,1.46251427]
[1673949919869,0.332,21165.0,21164.0,1.3209]
[1673949921230,0.33235954,21165.0,21164.0,1.3209]
[1673949921440,0.332,21165.0,21164.0,1.32108242]
[1673949922252,0.332,21165.0,21164.0,1.46269669]
[1673949922757,0.332,21165.0,21164.0,1.58832469]
[1673949923022,0.332,21165.0,21164.0,1.46269669]
[1673949923296,0.332,21165.0,21164.0,1.58832469]
[1673949923573,0.332,21165.0,21164.0,1.94559245]
[1673949924121,0.332,21165.0,21164.0,1.80023656]
[1673949924340,0.332,21165.0,21164.0,1.46269669]
[1673949925388,0.332,21165.0,21164.0,1.58832469]
[1673949926451,0.332,21165.0,21164.0,1.44671042]
[1673949926672,0.332,21165.0,21164.0,1.32108242]
[1673949926925,0.332,21165.0,21164.0,1.44671042]
[1673949927183,0.332,21165.0,21164.0,1.66392469]
[1673949927473,0.092,21165.0,21164.0,1.66392469]
[1673949927930,0.092,21165.0,21164.0,2.02163929]
[1673949927932,0.092,21165.0,21164.0,2.16113261]
[1673949928186,0.0919349,21165.0,21164.0,1.94922074]
[1673949928709,0.0919349,21165.0,21164.0,2.16135823]
[1673949929230,0.0919349,21165.0,21164.0,2.02167954]
[1673949929740,0.0919349,21165.0,21164.0,1.94577954]
[1673949930001,0.0919349,21165.0,21164.0,1.44641042]
[1673949931306,0.0919349,21165.0,21164.0,2.08907599]
[1673949931562,0.0919349,21165.0,21164.0,1.8079684]
[1673949931827,0.0919349,21165.0,21164.0,1.146228]
[1673949932057,0.0919349,21165.0,21164.0,1.02175263]
[1673949933085,0.13072135,21165.0,21164.0,1.02175263]
[1673949933343,0.13072135,21165.0,21164.0,1.0206]
[1673949933610,0.45288389,21165.0,21163.0,0.472519]
[1673949933866,0.321803,21164.0,21163.0,0.472519]
[1673949934657,0.13108089,21165.0,21163.0,0.472519]
[1673949934915,0.321803,21164.0,21163.0,0.472519]
[1673949935192,0.404803,21164.0,21163.0,0.473519]
[1673949938161,0.404803,21164.0,21163.0,0.773519]
[1673949938689,0.083,21164.0,21163.0,0.773519]
[1673949938966,0.083,21164.0,21163.0,1.246041]
[1673949939528,0.404803,21164.0,21163.0,1.246041]
[1673949939810,0.644803,21164.0,21163.0,0.946041]
[1673949941615,0.644803,21164.0,21163.0,1.246041]
[1673949941930,0.323,21164.0,21163.0,1.246041]
[1673949942680,0.323,21164.0,21163.0,0.946041]
[1673949942681,0.64516254,21164.0,21163.0,0.946041]
[1673949943968,0.64516254,21164.0,21163.0,0.473522]
[1673949944248,0.78653548,21164.0,21163.0,0.473522]
[1673949945016,0.64516254,21164.0,21163.0,0.473522]
[1673949945271,0.64516254,21164.0,21163.0,0.001]
[1673949945272,0.78653548,21164.0,21163.0,0.001]
[1673949945528,0.64516254,21164.0,21163.0,0.001]
[1673949945802,0.64516254,21164.0,21162.0,0.462232]
[1673949946062,0.321803,21163.0,21162.0,0.462232]
[1673949948118,0.321803,21163.0,21161.0,0.48586346]
[1673949948425,0.321803,21162.0,21161.0,0.48586346]
[1673949948689,0.321803,21162.0,21161.0,0.78586346]
[1673949948942,0.38173248,21164.0,21161.0,0.78586346]
[1673949949194,0.27335954,21164.0,21162.0,0.001]
[1673949949447,0.24035954,21164.0,21161.0,0.78586346]
[1673949949753,0.24035954,21164.0,21161.0,0.79186346]
[1673949949754,0.006,21162.0,21161.0,0.79186346]
[1673949950005,0.327803,21162.0,21161.0,1.26443046]
[1673949950265,0.006,21162.0,21161.0,1.26443046]
[1673949950527,0.24035954,21164.0,21161.0,1.25843046]
[1673949950798,0.24635954,21164.0,21161.0,1.26443046]
[1673949951057,0.24635954,21164.0,21161.0,1.25843046]
[1673949951058,0.321803,21163.0,21161.0,1.25843046]
[1673949951313,0.006,21162.0,21161.0,1.26443046]
[1673949951575,0.38173248,21164.0,21161.0,1.25843046]
[1673949951832,0.38773248,21164.0,21161.0,1.26443046]
[1673949952095,0.38773248,21164.0,21161.0,1.25843046]
[1673949952096,0.321803,21163.0,21161.0,1.25843046]
[1673949952368,0.321803,21162.0,21161.0,1.26443046]
[1673949952598,0.38173248,21164.0,21161.0,1.25843046]
[1673949953062,0.321803,21163.0,21161.0,1.25843046]
[1673949953333,0.24035954,21164.0,21161.0,1.25843046]
[1673949953586,0.24035954,21164.0,21162.0,0.3]
[1673949953836,0.24035954,21164.0,21162.0,0.772543]
[1673949954344,0.321803,21163.0,21162.0,0.772543]
[1673949954618,0.24035954,21164.0,21162.0,0.772543]
[1673949954873,0.32535954,21164.0,21162.0,0.773543]
[1673949955128,0.321803,21163.0,21162.0,0.773543]
[1673949955381,0.32535954,21164.0,21162.0,0.773543]
[1673949955662,0.32535954,21164.0,21162.0,0.001]
[1673949955917,0.321803,21163.0,21162.0,0.001]
[1673949956701,0.321803,21163.0,21161.0,0.48588046]
[1673949956957,0.321803,21162.0,21161.0,0.01331346]
[1673949958079,0.405803,21162.0,21161.0,0.01431346]
[1673949961067,0.405803,21162.0,21160.0,0.28431346]
[1673949961352,0.321803,21161.0,21160.0,0.28431346]
[1673949961618,0.321803,21161.0,21159.0,0.99463871]
[1673949961872,0.321803,21161.0,21159.0,1.46723271]
[1673949962129,0.084,21162.0,21159.0,1.46723271]
[1673949962394,0.084,21162.0,21160.0,0.3]
[1673949962395,0.321803,21161.0,21160.0,0.3]
[1673949962690,0.321803,21161.0,21159.0,1.46723271]
[1673949963765,0.321803,21160.0,21159.0,1.46723271]
[1673949964029,1.00729439,21163.0,21159.0,1.46723271]
[1673949964344,0.006,21161.0,21159.0,1.96295866]
[1673949964601,0.321803,21161.0,21159.0,0.95946946]
[1673949964865,0.006,21160.0,21159.0,0.96446946]
[1673949965130,0.006,21160.0,21159.0,0.78687546]
[1673949965425,0.006,21160.0,21159.0,0.78787546]
[1673949965717,0.321803,21161.0,21159.0,0.48687546]
[1673949965981,0.00035954,21162.0,21160.0,0.3]
[1673949966244,0.00035954,21162.0,21159.0,0.95946846]
[1673949966501,0.033,21160.0,21159.0,0.96046846]
[1673949966767,0.321803,21160.0,21159.0,1.25946846]
[1673949967124,0.00035954,21162.0,21159.0,1.25946846]
[1673949967637,0.354803,21161.0,21159.0,1.26046846]
[1673949967905,0.321803,21160.0,21159.0,1.25946846]
[1673949968204,0.033,21160.0,21159.0,1.26046846]
[1673949968719,0.321803,21161.0,21159.0,1.25946846]
[1673949968979,0.14173248,21162.0,21159.0,1.25946846]
[1673949969234,0.08535954,21162.0,21159.0,0.96046846]
[1673949969507,0.321803,21161.0,21159.0,0.95946846]
[1673949969768,0.033,21161.0,21159.0,0.96046846]
[1673949970029,0.321803,21160.0,21159.0,0.96046846]
[1673949970291,0.033,21161.0,21159.0,1.37186846]
[1673949970542,0.033,21161.0,21160.0,0.425664]
[1673949970805,0.74967939,21164.0,21160.0,1.482542]
[1673949971063,0.085,21162.0,21161.0,0.19072595]
[1673949971325,0.085,21162.0,21161.0,0.472567]
[1673949971583,0.085,21162.0,21161.0,0.772567]
[1673949971833,0.89105233,21164.0,21161.0,0.772567]
[1673949972172,0.97705233,21164.0,21162.0,0.3]
[1673949972379,0.89105233,21164.0,21162.0,0.3]
[1673949972647,0.89105233,21164.0,21162.0,0.772541]
[1673949972915,0.89105233,21164.0,21162.0,1.245086]
[1673949973506,0.74967939,21164.0,21162.0,1.245086]
[1673949973937,0.83603893,21164.0,21162.0,1.245086]
[1673949974212,0.74967939,21164.0,21162.0,1.245086]
[1673949974476,0.83567939,21164.0,21162.0,1.245086]
[1673949974776,0.83603893,21164.0,21162.0,1.245086]
[1673949975506,0.83603893,21164.0,21162.0,0.945086]
[1673949978376,0.97741187,21164.0,21162.0,0.945086]
[1673949978631,0.321803,21163.0,21162.0,0.945086]
[1673949978897,1.18947128,21164.0,21162.0,1.245086]
[1673949979394,0.321803,21163.0,21161.0,0.472546]
[1673949979656,0.321803,21162.0,21161.0,0.472546]
[1673949980186,0.321803,21162.0,21160.0,0.472573]
[1673949980444,0.35343235,21163.0,21160.0,0.472573]
[1673949980718,0.43943235,21163.0,21160.0,0.472573]
[1673949980983,0.321803,21162.0,21160.0,0.472573]
[1673949981270,0.086,21162.0,21160.0,0.472573]
[1673949981503,0.35343235,21163.0,21160.0,0.472573]
[1673949981761,0.43943235,21163.0,21160.0,0.472573]
[1673949982040,0.321803,21162.0,21160.0,0.472573]
[1673949982290,0.321803,21161.0,21160.0,0.472573]
[1673949982561,0.35343235,21163.0,21160.0,0.772573]
[1673949983065,0.321803,21162.0,21160.0,0.772573]
[1673949983319,0.321803,21161.0,21160.0,0.772573]
[1673949983584,0.00035954,21162.0,21160.0,0.472573]
[1673949983872,0.14173248,21162.0,21160.0,0.472573]
[1673949984071,0.406803,21161.0,21160.0,0.473573]
[1673949984379,0.085,21161.0,21160.0,0.773573]
[1673949984836,0.14173248,21162.0,21160.0,0.472573]
[1673949985099,0.321803,21161.0,21160.0,0.472573]
[1673949985602,0.406803,21161.0,21160.0,0.473573]
[1673949985855,0.085,21161.0,21160.0,0.443573]
[1673949986102,0.406803,21161.0,21160.0,0.443573]
[1673949986354,0.35379189,21162.0,21160.0,0.442573]
[1673949986620,0.321803,21161.0,21160.0,0.442573]
[1673949987164,0.14173248,21162.0,21160.0,0.742573]
[1673949987687,0.321803,21161.0,21159.0,0.48687246]
[1673949988152,0.321803,21160.0,21159.0,0.48687246]
[1673949988674,0.17237294,21161.0,21159.0,0.48687246]
[1673949988950,0.14137294,21161.0,21159.0,0.48687246]
[1673949989214,0.411803,21160.0,21159.0,0.48687246]
[1673949990308,0.321803,21160.0,21159.0,0.48687246]
[1673949991056,0.411803,21160.0,21159.0,0.48687246]
[1673949991317,0.09,21160.0,21159.0,0.48687246]
[1673949991600,0.411803,21160.0,21159.0,0.48687246]
[1673949992397,0.411803,21160.0,21159.0,0.01427946]
[1673949992663,0.523103,21160.0,21159.0,0.01427946]
[1673949993107,0.523103,21160.0,21157.0,0.22847315]
[1673949993108,0.56404662,21160.0,21157.0,0.22847315]
[1673949993376,0.321803,21159.0,21157.0,0.3698942]
[1673949993634,0.38361656,21160.0,21157.0,0.22847315]
[1673949993886,0.321803,21159.0,21157.0,0.22847315]
[1673949994157,0.38361656,21160.0,21157.0,0.22847315]
[1673949994158,0.29361656,21160.0,21157.0,0.22847315]
[1673949994428,0.04094362,21160.0,21158.0,0.3]
[1673949994957,0.031,21159.0,21158.0,0.772629]
[1673949996216,0.18231656,21160.0,21157.0,0.472656]
[1673949996478,0.00035954,21159.0,21157.0,0.472656]
[1673949997003,0.09035954,21159.0,21157.0,0.472656]
[1673949997238,0.14173248,21159.0,21156.0,0.472658]
[1673949997497,0.433503,21158.0,21156.0,0.472658]
[1673949997781,0.321803,21157.0,21156.0,0.472658]
[1673949998835,0.14173248,21159.0,21156.0,0.945337]
[1673949999097,0.14173248,21159.0,21156.0,1.24776295]
[1673949999098,0.00035954,21159.0,21156.0,1.24776295]
[1673949999414,0.007,21158.0,21156.0,1.60132149]
[1673949999619,0.007,21158.0,21156.0,0.945337]
[1673949999887,0.09,21157.0,21156.0,0.945337]
[1673950000152,0.09135954,21159.0,21156.0,0.472679]
[1673950000404,0.25303248,21159.0,21156.0,0.472679]
[1673950000721,0.412803,21158.0,21156.0,0.472679]
[1673950000921,0.321803,21157.0,21156.0,0.472679]
[1673950001177,0.5233792,21159.0,21156.0,0.472679]
[1673950001433,0.20265954,21159.0,21156.0,0.472679]
[1673950001695,0.11165954,21159.0,21156.0,0.472679]
[1673950001978,0.412803,21158.0,21156.0,0.472679]
[1673950002235,0.321803,21157.0,21156.0,0.472679]
[1673950002498,0.20265954,21159.0,21155.0,0.48817077]
[1673950002760,0.321803,21158.0,21155.0,0.48817077]
[1673950003022,0.20265954,21159.0,21155.0,0.48817077]
[1673950003332,0.20265954,21159.0,21155.0,0.67889672]
[1673950003814,0.20265954,21159.0,21156.0,0.3]
[1673950004072,0.20265954,21159.0,21156.0,0.772676]
[1673950004073,0.35860648,21159.0,21156.0,0.772676]
[1673950004358,0.321803,21158.0,21156.0,0.772676]
[1673950004649,0.091,21157.0,21156.0,0.472676]
[1673950004873,0.321803,21157.0,21156.0,0.472676]
[1673950005129,0.24,21158.0,21156.0,0.472676]
[1673950005396,0.24,21158.0,21155.0,0.48817877]
[1673950005665,0.331,21158.0,21155.0,0.48817877]
[1673950006011,0.57028294,21158.0,21155.0,0.48817877]
[1673950006977,0.331,21158.0,21155.0,0.48817877]
[1673950007261,0.24,21158.0,21156.0,0.3]
[1673950007498,0.331,21158.0,21156.0,0.3]
[1673950008026,0.331,21158.0,21155.0,0.96085977]
[1673950008279,0.24,21158.0,21155.0,0.96085977]
[1673950008537,0.331,21158.0,21155.0,0.96085977]
[1673950009579,0.24,21158.0,21155.0,0.96085977]
[1673950009814,0.331,21158.0,21155.0,0.96085977]
[1673950011631,0.331,21158.0,21155.0,0.48817877]
[1673950011889,0.321803,21157.0,21155.0,0.48817877]
[1673950012166,0.331,21158.0,21155.0,0.48817877]
[1673950012414,0.87560555,21158.0,21155.0,0.01547777]
[1673950012677,0.321803,21157.0,21155.0,0.01547777]
[1673950012940,0.321803,21156.0,21155.0,0.01547777]
[1673950013205,0.87560555,21158.0,21155.0,0.01547777]
[1673950013732,0.321803,21157.0,21155.0,0.01547777]
[1673950013989,0.321803,21156.0,21155.0,0.01547777]
[1673950016036,0.32216254,21156.0,21155.0,0.01547777]
[1673950016288,0.41316254,21156.0,21155.0,0.01547777]
[1673950017590,0.412803,21156.0,21155.0,0.01547777]
[1673950017832,0.09135954,21156.0,21155.0,0.01547777]
[1673950020384,0.091,21156.0,21155.0,0.01547777]
[1673950022216,0.412803,21156.0,21155.0,0.01547777]
[1673950022474,0.091,21156.0,21155.0,0.01547777]
[1673950022761,0.412803,21156.0,21155.0,0.01547777]
[1673950023280,0.41316254,21156.0,21155.0,0.01547777]
[1673950025902,0.60148809,21156.0,21155.0,0.01547777]
[1673950025905,0.66623548,21156.0,21155.0,0.01538994]
[1673950026170,0.77793548,21156.0,21155.0,0.01538994]
[1673950026423,0.63656254,21156.0,21155.0,0.01538994]
[1673950026688,0.77793548,21156.0,21155.0,0.01538994]
[1673950026941,0.63656254,21156.0,21155.0,0.01538994]
[1673950027202,0.34407294,21156.0,21155.0,0.20611589]
[1673950027465,0.091,21156.0,21155.0,0.67881689]
[1673950027730,0.091,21156.0,21155.0,0.01538994]
[1673950028029,0.55417594,21156.0,21155.0,0.01538994]
[1673950028517,0.76623535,21156.0,21155.0,0.01538994]
[1673950029030,3.31555255,21156.0,21155.0,0.01538994]
[1673950029308,3.68823155,21156.0,21155.0,0.01538994]
[1673950029541,2.04666899,21156.0,21155.0,0.01538994]
[1673950030882,0.4969394,21155.0,21154.0,0.0011468]
[1673950031139,2.80782614,21155.0,21154.0,0.0011468]
[1673950031401,4.73249732,21155.0,21154.0,0.0011468]
[1673950032013,4.82349732,21155.0,21154.0,0.0011468]
[1673950032175,3.87776281,21155.0,21154.0,0.0011468]
[1673950032448,2.77919492,21155.0,21154.0,0.0011468]
[1673950032709,3.99718742,21155.0,21154.0,0.0011468]
[1673950032992,3.36469156,21155.0,21154.0,0.0011468]
[1673950033277,1.39864409,21155.0,21154.0,0.0011468]
[1673950034614,1.7520792,21155.0,21154.0,0.0011468]
[1673950035379,1.27487751,21155.0,21154.0,0.0011468]
[1673950035635,0.8097424,21155.0,21154.0,0.0011468]
[1673950036762,0.95111118,21155.0,21154.0,0.0011468]
[1673950037456,0.8097424,21155.0,21154.0,0.0011468]
[1673950037714,0.4879394,21155.0,21154.0,0.0011468]
[1673950038235,0.8097424,21155.0,21154.0,0.0011468]
[1673950038508,1.0606158,21155.0,21154.0,0.0011468]
[1673950038767,1.31368458,21155.0,21154.0,0.0011468]
[1673950039023,1.52575091,21155.0,21154.0,0.0011468]
[1673950039283,1.24480873,21155.0,21154.0,0.0011468]
[1673950039544,2.29523656,21155.0,21154.0,0.0011468]
[1673950039852,2.90928981,21155.0,21154.0,0.0011468]
[1673950040376,2.69722348,21155.0,21154.0,0.0011468]
[1673950040664,3.17132565,21155.0,21154.0,0.0011468]
[1673950040939,4.08164694,21155.0,21154.0,0.0011468]
[1673950041248,5.21734244,21155.0,21154.0,0.0011468]
[1673950041518,5.21740824,21155.0,21154.0,0.0011468]
[1673950042072,4.91175184,21155.0,21154.0,0.0011468]
[1673950042329,6.97489136,21155.0,21154.0,0.0011468]
[1673950042849,0.1,21154.0,21153.0,0.01226094]
[1673950043108,5.34228099,21154.0,21153.0,0.01226094]
[1673950043377,5.39055427,21154.0,21153.0,0.01226094]
[1673950043639,0.1,21153.0,21152.0,7.77e-06]
[1673950043918,0.69380955,21144.0,21139.0,2.6599666]
[1673950044178,0.1117,21141.0,21139.0,2.6599666]
[1673950044448,0.1117,21141.0,21139.0,6.66e-05]
[1673950044714,0.69380955,21144.0,21140.0,0.2107]
[1673950044977,0.69380955,21144.0,21141.0,0.125833]
[1673950045482,0.69380955,21144.0,21141.0,0.19072595]
[1673950045483,0.72480955,21144.0,21141.0,0.19072595]
[1673950045484,0.72480955,21144.0,21142.0,0.572992]
[1673950045485,0.69380955,21144.0,21142.0,0.572992]
[1673950045743,0.69380955,21144.0,21143.0,0.2107]
[1673950046004,0.69380955,21144.0,21143.0,0.601913]
[1673950046265,0.69380955,21144.0,21143.0,0.501913]
[1673950046527,0.69380955,21144.0,21143.0,0.3761]
[1673950046778,0.69380955,21144.0,21143.0,0.501912]
[1673950047038,0.78480955,21144.0,21143.0,0.501912]
[1673950047306,0.69380955,21144.0,21143.0,0.501912]
[1673950047571,0.78380955,21144.0,21143.0,0.501912]
[1673950048069,0.78380955,21144.0,21143.0,0.69263795]
[1673950048072,0.69380955,21144.0,21143.0,0.577712]
[1673950048331,0.72480955,21144.0,21143.0,1.31913305]
[1673950048589,0.72480955,21144.0,21143.0,1.31329287]
[1673950048846,0.72480955,21144.0,21143.0,1.17187182]
[1673950049127,0.72480955,21144.0,21143.0,1.86178357]
[1673950049361,0.04099408,21151.0,21144.0,0.60701566]
[1673950049632,0.04099408,21151.0,21150.0,0.152]
[1673950049893,0.04099408,21151.0,21150.0,0.81553895]
[1673950050158,0.04099408,21151.0,21150.0,0.94128895]
[1673950050655,0.04099408,21151.0,21150.0,1.53148895]
[1673950050658,0.04099408,21151.0,21150.0,1.82138895]
[1673950050927,0.04099408,21151.0,21150.0,1.19238168]
[1673950051186,0.04099408,21151.0,21150.0,1.051263]
[1673950051956,0.04599408,21151.0,21150.0,1.084263]
[1673950052211,0.04599408,21151.0,21150.0,1.051263]
[1673950052212,0.04099408,21151.0,21150.0,1.051263]
[1673950052468,0.09899408,21151.0,21150.0,1.054263]
[1673950052722,0.04099408,21151.0,21150.0,1.051263]
[1673950053068,0.09899408,21151.0,21150.0,1.054263]
[1673950053273,0.04099408,21151.0,21150.0,1.051263]
[1673950053794,0.09899408,21151.0,21150.0,0.977863]
[1673950054829,0.04099408,21151.0,21150.0,0.974863]
[1673950055365,0.04099408,21151.0,21150.0,0.977863]
[1673950055627,0.09899408,21151.0,21150.0,0.977863]
[1673950055872,0.33899408,21151.0,21150.0,0.977863]
[1673950059276,0.33899408,21151.0,21150.0,1.450676]
[1673950059801,0.33899408,21151.0,21150.0,1.526776]
[1673950060329,0.33899408,21151.0,21150.0,1.95709468]
[1673950061878,0.33899408,21151.0,21150.0,1.226776]
[1673950063488,0.33899408,21151.0,21150.0,1.2278746]
[1673950063686,0.33899408,21151.0,21150.0,1.226776]
[1673950063942,0.33899408,21151.0,21150.0,1.526776]
[1673950064789,0.33899408,21151.0,21150.0,0.003]
[1673950064790,0.88453055,21151.0,21150.0,0.003]
[1673950065003,1.68353524,21151.0,21150.0,0.003]
[1673950065283,1.17243414,21151.0,21150.0,0.003]
[1673950065809,1.17243414,21151.0,21146.0,0.472895]
[1673950065810,1.11443414,21151.0,21146.0,0.472895]
[1673950066254,0.321803,21150.0,21146.0,0.472895]
[1673950066257,0.88063114,21151.0,21146.0,0.472895]
[1673950066790,0.79263114,21151.0,21146.0,0.472895]
[1673950067045,0.79263114,21151.0,21146.0,0.66362095]
[1673950067321,1.10691603,21151.0,21145.0,0.472916]
[1673950067576,0.421803,21150.0,21145.0,0.73974195]
[1673950067826,0.1,21150.0,21145.0,0.549016]
[1673950068087,1.42895193,21151.0,21145.0,0.73974195]
[1673950068354,0.65235257,21150.0,21145.0,0.26682595]
[1673950068674,0.65235257,21150.0,21146.0,0.3]
[1673950068923,0.47720169,21150.0,21146.0,0.49072595]
[1673950069464,0.56513301,21150.0,21146.0,0.3]
[1673950069722,0.47713301,21150.0,21145.0,0.3761]
[1673950070020,0.56513301,21150.0,21145.0,0.56682595]
[1673950070798,0.47713301,21150.0,21145.0,0.56682595]
[1673950071058,0.56513301,21150.0,21145.0,1.03974795]
[1673950071358,0.47713301,21150.0,21145.0,1.03974795]
[1673950072359,0.50952961,21149.0,21145.0,1.03974795]
[1673950072640,0.50952961,21149.0,21145.0,0.772922]
[1673950072873,0.90766551,21149.0,21144.0,0.79537813]
[1673950073126,0.321803,21148.0,21144.0,0.79537813]
[1673950073395,1.3848672,21149.0,21144.0,0.79537813]
[1673950073654,2.28925001,21149.0,21144.0,0.98610408]
[1673950073923,2.20125001,21149.0,21144.0,0.98610408]
[1673950074191,1.9457042,21149.0,21144.0,0.98610408]
[1673950074451,1.6236683,21149.0,21144.0,0.98610408]
[1673950074720,0.59752961,21149.0,21145.0,0.49072595]
[1673950075004,0.59752961,21149.0,21146.0,0.472901]
[1673950075290,0.59752961,21149.0,21147.0,0.3]
[1673950075544,0.50952961,21149.0,21147.0,0.472875]
[1673950076319,0.50988915,21149.0,21147.0,0.472875]
[1673950076869,0.59788915,21149.0,21147.0,0.472875]
[1673950077400,1.08827072,21148.0,21141.0,2.67822112]
[1673950077666,1.59704063,21147.0,21141.0,2.67822112]
[1673950078031,1.12415063,21146.0,21141.0,2.67822112]
[1673950078033,0.79900469,21146.0,21141.0,2.67822112]
[1673950078244,0.321803,21145.0,21141.0,0.01832112]
[1673950078476,0.32216254,21144.0,21141.0,0.01832112]
[1673950078682,0.00035954,21144.0,21141.0,0.01832112]
[1673950078905,1.39822626,21146.0,21142.0,0.00109902]
[1673950079127,1.39822626,21146.0,21142.0,0.19072595]
[1673950079344,0.321803,21145.0,21142.0,0.49072595]
[1673950079571,0.321803,21144.0,21142.0,0.3]
[1673950079782,0.071,21144.0,21142.0,0.30109902]